bitfinex/quotes_ETHUSD_20241223
["timestamp","ask_amount","ask_price","bid_price","bid_amount"]
[1734969308036,3.0,3284.5,3283.0,1.5613]
[1734969308204,3.04452,3284.6,3283.0,1.5613]
[1734969308536,3.0,3284.5,3283.0,1.5613]
[1734969308995,0.32365859,3285.1,3283.2,1.5613]
[1734969309189,4.5386,3285.2,3283.0,0.53550114]
[1734969309190,1.5386,3285.2,3283.4,1.5613]
[1734969309538,1.5386,3285.2,3283.7,0.55]
[1734969309899,1.5386,3285.2,3284.4,0.61785252]
[1734969310094,3.04406,3285.1,3284.4,0.61785252]
[1734969310397,1.5386,3285.2,3284.4,0.61785252]
[1734969311039,4.5386,3285.2,3284.4,0.61785252]
[1734969311240,3.04408,3285.1,3283.7,0.55]
[1734969311440,6.04416,3285.0,3283.7,0.55]
[1734969311736,3.0,3284.8,3283.7,0.55]
[1734969312036,1.5386,3285.2,3283.6,1.5613]
[1734969312240,3.0,3284.2,3282.5,1.5613]
[1734969312694,1.86225859,3284.4,3282.5,1.5613]
[1734969312898,3.04514,3284.0,3282.5,1.5613]
[1734969313236,3.04486,3284.3,3282.5,1.5613]
[1734969313437,3.0,3284.2,3282.5,1.5613]
[1734969313636,1.5386,3284.4,3282.5,1.5613]
[1734969313637,4.5386,3284.4,3283.4,0.61268905]
[1734969313848,1.5386,3284.4,3283.4,0.61268905]
[1734969314144,3.04497,3284.2,3283.4,0.61268905]
[1734969314297,3.0,3284.1,3283.4,0.61268905]
[1734969315341,4.58329,3284.4,3283.4,0.61268905]
[1734969315495,3.04479,3284.3,3283.4,0.61268905]
[1734969315694,3.0,3284.2,3283.4,0.61268905]
[1734969316090,3.0,3283.9,3282.8,0.55]
[1734969316296,3.0,3283.5,3282.7,1.598]
[1734969316531,3.0,3284.0,3282.7,1.598]
[1734969316741,3.0,3283.8,3282.7,1.598]
[1734969316943,3.0,3284.3,3283.0,0.62483783]
[1734969317245,3.0,3284.1,3283.0,0.62483783]
[1734969317399,3.0,3284.3,3283.0,0.62483783]
[1734969317598,3.0,3283.9,3283.0,0.62483783]
[1734969317822,3.0,3284.1,3283.0,0.62483783]
[1734969318441,1.5386,3284.4,3283.0,0.62483783]
[1734969318640,3.0,3284.2,3283.0,0.62483783]
[1734969318799,1.86225859,3284.4,3283.0,0.62483783]
[1734969319010,3.0,3284.1,3283.0,0.62483783]
[1734969319353,4.90696859,3284.4,3282.7,1.598]
[1734969319521,3.0,3283.5,3282.7,1.598]
[1734969320062,3.0,3283.5,3282.7,2.2017715]
[1734969320407,3.0,3283.8,3282.7,2.2017715]
[1734969320608,3.0,3283.6,3282.7,2.2017715]
[1734969321477,3.0,3283.8,3282.7,2.2017715]
[1734969321778,6.04529,3283.8,3282.7,2.2017715]
[1734969321923,0.32365859,3284.1,3281.5,1.6008]
[1734969321924,3.04571,3283.3,3281.5,1.6008]
[1734969322124,1.5385,3283.1,3282.3,0.60810727]
[1734969322438,3.0,3282.1,3281.7,0.61390866]
[1734969322671,3.0,3282.4,3281.7,0.61390866]
[1734969322838,4.58445,3283.1,3281.7,0.61390866]
[1734969322839,1.5385,3283.1,3281.7,0.61390866]
[1734969323042,1.5448,3283.9,3281.9,1.5237]
[1734969323455,3.0,3283.7,3281.9,1.5237]
[1734969323623,3.0,3283.7,3282.0,1.6586]
[1734969323826,3.0,3283.5,3282.2,0.60261122]
[1734969324072,6.04559,3283.5,3282.2,0.60261122]
[1734969324226,7.91365859,3283.9,3282.2,0.60261122]
[1734969324430,4.86845859,3283.9,3282.2,0.60261122]
[1734969324783,4.86845859,3283.9,3282.3,2.0906]
[1734969324935,6.80137938,3284.5,3282.8,1.5406]
[1734969325126,3.45277938,3284.5,3283.2,0.62151033]
[1734969325448,3.14365742,3284.5,3283.3,1.5406]
[1734969325829,3.14365742,3284.6,3283.3,1.5406]
[1734969326023,3.14365742,3284.6,3283.5,1.5406]
[1734969326873,3.14365742,3284.6,3283.7,1.5406]
[1734969327179,3.14365742,3284.6,3284.0,1.5406]
[1734969327343,3.04385,3285.4,3284.0,1.5406]
[1734969327729,3.74210926,3285.7,3284.2,1.5406]
[1734969327938,3.14365742,3285.7,3284.4,0.60477219]
[1734969328539,3.46731601,3285.7,3284.4,0.60477219]
[1734969328775,6.51082601,3285.7,3284.4,0.60477219]
[1734969328988,0.32365859,3285.7,3284.4,0.60477219]
[1734969329172,3.0,3285.4,3284.4,0.60477219]
[1734969329348,3.0,3285.9,3284.4,0.60477219]
[1734969329670,5.04241601,3286.1,3284.5,2.0906]
[1734969329875,4.71875742,3286.1,3284.6,1.5406]
[1734969330076,3.14365742,3286.1,3284.8,1.5406]
[1734969330295,3.14365742,3286.1,3284.9,0.55]
[1734969330511,3.14365742,3286.1,3285.0,1.5069]
[1734969330658,3.14365742,3286.1,3285.1,0.20569]
[1734969330995,3.14365742,3286.1,3285.2,1.14774706]
[1734969331201,3.14365742,3286.1,3285.4,0.55]
[1734969331353,3.14365742,3286.1,3285.6,0.55]
[1734969331555,3.14365742,3286.1,3285.5,1.5861]
[1734969331802,3.043,3286.3,3285.5,1.5861]
[1734969331962,1.5031,3286.5,3285.5,1.5861]
[1734969332164,0.32365859,3286.5,3285.5,1.5861]
[1734969333051,4.61089056,3286.8,3285.5,1.5861]
[1734969333300,1.61089056,3286.8,3285.6,0.55]
[1734969333448,1.61089056,3286.8,3285.6,1.5751]
[1734969333802,1.61089056,3286.8,3285.9,0.55]
[1734969334752,1.61089056,3286.8,3285.8,1.5751]
[1734969334957,20.13924159,3286.7,3285.3,0.61804779]
[1734969335286,3.04368,3285.5,3285.1,1.5881]
[1734969335483,14.432071,3285.4,3285.1,1.5881]
[1734969335686,3.0,3285.2,3284.8,0.6146308]
[1734969335857,3.0,3286.5,3284.9,1.5881]
[1734969336185,3.0,3286.3,3284.9,1.5881]
[1734969336773,6.04275,3286.5,3284.9,1.5881]
[1734969336963,3.0,3286.3,3285.0,0.55]
[1734969337838,3.043,3286.3,3284.9,1.5881]
[1734969338109,3.0,3286.1,3284.9,1.5881]
[1734969338406,3.0,3286.7,3285.1,1.5386]
[1734969338605,3.04256,3286.7,3285.1,1.5386]
[1734969338775,3.0,3286.5,3285.1,1.5386]
[1734969339106,4.61089056,3286.8,3285.2,0.55]
[1734969339302,4.61089056,3286.8,3285.3,1.5884]
[1734969339466,3.0,3286.6,3285.3,1.5884]
[1734969339667,4.61089056,3286.8,3285.3,1.5884]
[1734969340006,1.61089056,3286.8,3285.3,1.5884]
[1734969340206,1.61089056,3286.8,3285.7,0.60271664]
[1734969340423,1.61089056,3286.8,3285.8,1.5884]
[1734969341139,1.61089056,3286.8,3285.9,0.55]
[1734969341432,1.61089056,3286.8,3286.1,0.55]
[1734969341825,1.61089056,3286.8,3286.3,0.55]
[1734969341976,3.14365742,3287.0,3286.3,0.55]
[1734969342724,1.218829,3287.7,3286.3,0.55]
[1734969342725,6.18547742,3287.5,3286.3,0.55]
[1734969343077,3.14365742,3287.5,3286.7,0.59600283]
[1734969343283,3.14365742,3287.7,3286.8,1.6317]
[1734969343881,3.14365742,3287.7,3286.9,0.55]
[1734969344084,3.14365742,3287.7,3287.5,0.59508732]
[1734969344296,3.14365742,3287.7,3287.6,2.1817]
[1734969344628,5.4848457,3288.6,3287.8,1.6317]
[1734969344629,3.14365742,3288.1,3287.8,1.6317]
[1734969344793,3.14365742,3288.1,3287.9,0.55]
[1734969345333,3.14365742,3288.1,3287.8,0.55]
[1734969345517,3.14365742,3288.1,3288.0,2.0696]
[1734969345837,2.15900954,3288.1,3288.0,5.11096]
[1734969345985,2.15900954,3289.3,3288.3,0.55]
[1734969346179,2.15900954,3289.3,3288.5,0.55]
[1734969346882,3.7659111,3289.6,3288.6,1.5196]
[1734969347079,0.1675456,3289.9,3288.9,0.55]
[1734969347310,0.1675456,3289.9,3289.1,0.55]
[1734969348281,0.1675456,3289.9,3289.0,1.5196]
[1734969348481,0.1675456,3289.9,3289.1,0.55]
[1734969348791,0.1675456,3289.9,3289.4,0.60480537]
[1734969348984,0.1675456,3289.9,3289.5,1.5963]
[1734969349640,0.1675456,3289.9,3288.5,3.04086]
[1734969349641,6.04303159,3289.8,3288.5,0.59736274]
[1734969349818,1.5302,3289.6,3287.0,1.5661]
[1734969349986,0.58024723,3289.5,3288.0,1.5661]
[1734969350295,0.32365859,3289.5,3288.0,1.5661]
[1734969350501,3.04037,3289.1,3288.0,1.5661]
[1734969350704,3.0,3289.0,3288.0,1.5661]
[1734969351324,3.0,3289.4,3288.0,1.5661]
[1734969351523,3.0,3289.0,3288.0,1.5661]
[1734969352191,3.04014,3289.4,3288.0,1.5661]
[1734969352389,3.04026,3289.2,3288.0,1.5661]
[1734969352594,3.04038,3289.1,3288.0,1.5661]
[1734969352789,3.0,3289.0,3288.0,1.5661]
[1734969353124,3.0,3289.5,3288.0,1.5661]
[1734969353323,6.03997,3289.5,3288.0,1.5661]
[1734969353528,1.218115,3289.7,3288.3,0.55]
[1734969353835,1.218115,3289.7,3288.2,1.5456]
[1734969353836,1.218115,3289.7,3288.4,0.55]
[1734969353989,1.218115,3289.7,3289.0,0.55]
[1734969354187,0.1675456,3289.9,3289.2,0.55]
[1734969354390,0.1675456,3289.9,3289.4,0.55]
[1734969354624,0.1675456,3289.9,3289.6,1.5632]
[1734969355040,0.1675456,3289.9,3289.8,1.5632]
[1734969355242,0.1675456,3289.9,3289.8,2.1508]
[1734969356043,0.1675456,3289.9,3289.8,1.6008]
[1734969356192,0.1675456,3289.9,3289.8,2.1508]
[1734969356539,0.1675456,3289.9,3289.8,2.73037438]
[1734969356895,3.28696732,3292.8,3290.0,1.6294]
[1734969356896,1.6233,3291.9,3290.0,1.6294]
[1734969357097,1.87782925,3292.8,3290.6,0.55]
[1734969357337,1.87782925,3292.8,3290.4,0.55]
[1734969357338,1.217076,3292.5,3290.9,1.6294]
[1734969357525,3.0372,3292.6,3291.1,1.6294]
[1734969358142,2.823855,3292.8,3291.1,1.6294]
[1734969358295,2.823855,3292.8,3290.6,1.6333]
[1734969358502,0.58024723,3292.7,3291.1,0.60781801]
[1734969358758,3.03725,3292.5,3291.2,1.6333]
[1734969358916,3.03703,3292.7,3291.2,1.6333]
[1734969359114,3.03703,3292.7,3291.2,1.8574118]
[1734969359323,0.32365859,3292.6,3291.2,1.6333]
[1734969359706,3.36084859,3292.6,3291.2,1.6333]
[1734969360022,3.03738,3292.4,3291.2,1.6333]
[1734969360246,3.36084859,3292.6,3291.2,1.6333]
[1734969360247,0.32365859,3292.6,3291.2,1.6333]
[1734969360404,3.0,3292.5,3291.2,1.6333]
[1734969360606,0.32365859,3292.4,3291.2,1.6333]
[1734969360807,3.0,3292.1,3291.2,1.6333]
[1734969361057,3.03741,3292.3,3291.2,1.6333]
[1734969361205,1.217011,3292.7,3291.2,1.6333]
[1734969361410,4.54066959,3292.7,3291.2,1.6333]
[1734969361609,3.03758,3292.1,3291.2,1.6333]
[1734969361860,3.03738,3292.4,3291.2,1.6333]
[1734969362066,3.0,3292.3,3291.2,1.6333]
[1734969362415,3.0,3292.2,3291.2,1.6333]
[1734969362714,3.0,3292.0,3291.2,1.6333]
[1734969362914,0.32365859,3292.1,3291.2,1.6333]
[1734969363110,3.0,3291.9,3291.2,1.6333]
[1734969363363,3.0,3291.8,3291.2,1.6333]
[1734969363669,3.0,3291.6,3291.2,1.6333]
[1734969363958,3.0,3291.0,3290.7,1.5317]
[1734969364160,3.03889,3290.7,3289.6,1.5317]
[1734969364372,3.03885,3290.8,3290.0,0.61687025]
[1734969364515,3.0,3290.7,3290.0,0.61687025]
[1734969364714,3.0,3290.7,3289.6,1.5317]
[1734969364715,6.03888,3290.7,3289.6,1.5317]
[1734969364913,3.03932,3290.3,3289.6,1.5317]
[1734969365144,3.0,3290.7,3289.6,1.5317]
[1734969365353,3.0385,3291.1,3289.6,1.5317]
[1734969365515,4.5214,3291.4,3289.6,1.5317]
[1734969365716,3.03803,3291.7,3290.1,1.5971]
[1734969365959,1.6131,3291.9,3290.1,1.5971]
[1734969366172,3.0,3291.5,3290.1,1.5971]
[1734969366329,3.03787,3291.8,3290.1,1.5971]
[1734969366533,1.6131,3291.9,3290.1,1.5971]
[1734969366844,3.0,3291.8,3290.8,1.6061]
[1734969367215,3.0,3292.2,3290.8,1.6061]
[1734969367574,1.5808,3291.8,3289.7,1.6061]
[1734969367716,3.0,3291.3,3289.7,1.6061]
[1734969367916,3.0,3291.7,3290.3,1.5674]
[1734969368245,1.5808,3292.2,3290.5,1.5727]
[1734969368457,3.03757,3292.1,3290.5,1.5727]
[1734969368749,3.03729,3292.4,3290.7,1.5727]
[1734969369062,0.302,3292.5,3290.7,1.5727]
[1734969369356,3.03752,3292.2,3290.7,1.5727]
[1734969369577,3.03729,3292.5,3291.1,1.6356]
[1734969370015,3.0373,3292.4,3291.1,1.6356]
[1734969370411,3.03765,3292.1,3291.1,1.6356]
[1734969370615,3.03769,3292.0,3291.1,1.6356]
[1734969370883,3.03793,3291.8,3291.1,1.6356]
[1734969371035,3.0,3291.6,3290.7,1.6139]
[1734969371218,3.0,3291.0,3289.7,1.6139]
[1734969371413,3.03827,3291.4,3289.7,1.6139]
[1734969371414,3.0,3290.8,3289.7,1.6139]
[1734969371620,3.0,3291.0,3289.7,1.6139]
[1734969372015,0.28620899,3291.4,3290.2,1.6139]
[1734969372248,3.28620899,3291.4,3290.2,1.6139]
[1734969372448,3.0,3291.0,3290.2,1.6139]
[1734969372652,3.0,3290.8,3290.2,1.6139]
[1734969372921,0.32365859,3291.6,3290.2,1.6139]
[1734969372922,3.03841,3291.2,3290.2,1.6139]
[1734969373235,3.0,3289.9,3288.8,1.611]
[1734969373649,3.0,3289.1,3288.8,1.611]
[1734969373850,5.594956,3289.0,3288.8,1.611]
[1734969374055,3.0,3288.9,3288.2,2.25203058]
[1734969374366,3.04055,3288.9,3288.2,1.6381]
[1734969374570,1.5566,3289.4,3288.2,1.6381]
[1734969374733,1.5734,3289.8,3288.2,1.6381]
[1734969375141,4.6131,3289.8,3288.2,1.6381]
[1734969375324,3.03996,3289.6,3288.2,1.6381]
[1734969375520,4.576,3290.7,3288.5,1.5444]
[1734969375719,3.0,3290.1,3288.5,1.5444]
[1734969376287,3.0,3290.1,3288.6,1.5444]
[1734969376735,3.0,3290.3,3288.9,0.5994278]
[1734969376938,0.55,3290.2,3288.9,0.5994278]
[1734969377142,3.0397,3289.8,3288.6,1.5444]
[1734969377327,0.55,3290.2,3288.6,1.5444]
[1734969377328,0.55,3290.0,3288.6,1.5444]
[1734969377523,1.5111,3290.1,3288.6,1.5444]
[1734969377524,3.0,3289.6,3288.6,1.5444]
[1734969377762,1.5111,3290.1,3288.6,1.5444]
[1734969377962,0.55,3290.0,3288.6,1.5444]
[1734969378170,3.04001,3289.5,3288.6,1.5444]
[1734969378379,3.55,3289.8,3288.6,1.5444]
[1734969378672,3.03989,3289.6,3288.6,1.5444]
[1734969378875,3.0,3289.8,3288.6,1.5444]
[1734969379026,3.03932,3290.3,3288.6,1.5444]
[1734969379221,3.03905,3290.5,3288.6,1.5444]
[1734969379440,4.7054806,3291.1,3289.2,1.5083]
[1734969379638,3.03961,3289.9,3289.2,1.5083]
[1734969380148,3.03868,3290.9,3289.2,1.5083]
[1734969380149,3.03959,3290.0,3289.2,1.5083]
[1734969380552,3.03914,3290.5,3289.2,1.5083]
[1734969380751,3.03931,3290.3,3289.2,1.5083]
[1734969380952,0.55,3290.5,3289.2,1.5083]
[1734969381450,3.0,3290.3,3289.2,1.5083]
[1734969381780,3.0,3290.2,3289.2,1.5083]
[1734969381965,3.0,3290.4,3289.2,1.5083]
[1734969382261,3.0,3290.1,3289.2,1.5083]
[1734969382468,3.0,3290.0,3289.2,1.5083]
[1734969382672,1.95545859,3290.3,3287.3,1.5707]
[1734969382883,1.6318,3289.7,3287.7,1.5707]
[1734969383109,3.0,3288.7,3287.7,1.5707]
[1734969383461,3.0,3288.9,3287.7,1.5707]
[1734969383898,3.04073,3288.7,3287.7,1.5707]
[1734969384104,3.0,3288.6,3287.7,1.5707]
[1734969384401,6.04081,3288.6,3287.7,1.5707]
[1734969384959,3.0,3288.7,3287.7,2.18466931]
[1734969385159,3.0,3289.4,3287.9,1.5309]
[1734969385356,3.0,3289.4,3287.8,0.21846693]
[1734969385357,4.6318,3289.7,3288.0,1.5309]
[1734969385556,3.1340806,3289.8,3288.1,1.5309]
[1734969385759,3.1340806,3289.8,3288.3,3.04108]
[1734969385983,3.1340806,3289.8,3288.5,1.5309]
[1734969386208,3.0397,3289.8,3288.5,1.5309]
[1734969386381,3.03986,3289.7,3288.5,1.5309]
[1734969386585,3.36317859,3290.0,3288.5,1.5309]
[1734969386817,3.04011,3289.4,3288.5,1.5309]
[1734969387021,3.0,3289.3,3288.5,1.5309]
[1734969387314,3.0,3289.5,3288.5,1.5309]
[1734969387601,0.32365859,3290.0,3288.5,1.5309]
[1734969387784,3.03945,3290.1,3288.5,1.5309]
[1734969387984,3.1340806,3290.2,3288.6,1.5308]
[1734969388202,3.1340806,3290.0,3288.7,1.5308]
[1734969388371,3.03966,3289.9,3288.7,1.5308]
[1734969388988,3.0,3289.8,3288.7,1.5308]
[1734969389620,3.0,3290.1,3288.7,1.5308]
[1734969389831,6.03969,3289.8,3288.8,0.62182895]
[1734969390130,3.03968,3289.9,3288.7,1.5308]
[1734969390278,3.1340806,3290.2,3288.7,1.74357485]
[1734969390478,3.0,3290.1,3288.8,1.5211]
[1734969390787,3.0,3290.1,3288.7,3.25341485]
[1734969390788,3.1340806,3290.2,3289.2,1.5211]
[1734969391369,6.8999917,3290.5,3289.2,1.5211]
[1734969391571,3.1340806,3290.5,3289.2,1.5211]
[1734969392024,6.25354,3291.1,3289.2,1.5211]
[1734969392025,3.03895,3290.6,3289.2,1.5211]
[1734969392329,3.0,3290.0,3289.2,1.5211]
[1734969393323,3.0,3290.1,3289.2,1.5211]
[1734969393674,6.03942,3290.1,3289.2,1.5211]
[1734969395009,0.55,3290.1,3289.2,1.5211]
[1734969395319,3.0,3289.4,3287.9,1.549]
[1734969395479,3.0,3289.7,3287.9,1.549]
[1734969395680,3.55,3289.2,3288.0,0.61785028]
[1734969396098,3.0,3289.1,3288.0,0.61785028]
[1734969396294,3.04107,3288.4,3287.9,1.549]
[1734969396478,18.400381,3288.3,3287.9,1.549]
[1734969396686,3.0,3288.5,3287.9,1.549]
[1734969397472,3.0,3288.3,3287.5,0.60712096]
[1734969397755,16.507758,3288.4,3287.5,0.60712096]
[1734969397756,3.0,3288.4,3287.5,2.14352096]
[1734969397920,3.0,3288.1,3287.5,1.5364]
[1734969398251,3.04087,3288.6,3287.5,1.5364]
[1734969398252,6.983535,3288.0,3287.5,1.5364]
[1734969398457,3.0,3287.8,3287.5,1.5364]
[1734969398609,4.5922,3288.5,3287.5,1.5364]
[1734969398610,3.0,3288.0,3287.5,1.5364]
[1734969398806,3.0,3287.8,3287.5,1.5364]
[1734969399036,3.0,3287.9,3287.5,1.5364]
[1734969399234,3.0,3287.9,3287.1,0.6035242]
[1734969399235,0.55,3288.1,3287.1,2.1623242]
[1734969399514,3.0,3287.9,3287.1,2.1623242]
[1734969400058,3.04179,3287.6,3287.1,2.1623242]
[1734969400352,18.682428,3287.5,3287.1,1.5588]
[1734969400508,3.04158,3287.8,3287.1,1.5588]
[1734969400715,0.55,3287.9,3287.1,1.5588]
[1734969400922,3.0,3288.1,3287.1,1.5588]
[1734969401655,3.0,3288.1,3287.3,1.5588]
[1734969401861,3.1340806,3288.2,3287.3,2.15777517]
[1734969401862,3.0,3288.2,3287.3,2.15777517]
[1734969402371,3.0,3288.4,3287.3,2.15777517]
[1734969402867,3.0,3288.7,3287.3,2.15777517]
[1734969403057,6.04079,3288.7,3287.4,1.6645]
[1734969403566,3.0,3288.7,3287.4,1.6645]
[1734969403864,3.0,3288.6,3287.4,1.6645]
[1734969404093,6.04084,3288.6,3287.4,1.6645]
[1734969404583,3.1340806,3289.0,3287.5,0.22634752]
[1734969404870,0.31209414,3289.5,3288.0,1.5739]
[1734969404871,3.1340806,3289.1,3288.0,1.5739]
[1734969405086,3.1340806,3289.1,3288.4,1.5739]
[1734969405386,3.1340806,3289.1,3289.0,4.61433]
[1734969405524,2.13536397,3289.1,3289.0,4.61433]
[1734969405728,0.46876397,3289.7,3289.2,1.5739]
[1734969406535,5.676446,3289.6,3289.2,1.5739]
[1734969406735,0.46876397,3289.7,3289.2,1.5739]
[1734969407466,3.0,3290.6,3289.2,1.5739]
[1734969407667,4.57479,3290.7,3289.2,1.5739]
[1734969407875,1.5359,3290.7,3289.2,1.5739]
[1734969408076,3.03913,3290.5,3289.2,1.5739]
[1734969408275,1.85955859,3290.7,3289.2,1.5739]
[1734969408450,3.03913,3290.5,3289.2,1.5739]
[1734969408644,3.03943,3290.1,3289.2,1.5739]
[1734969408876,3.03978,3289.8,3287.9,1.6662]
[1734969409078,3.04011,3289.4,3288.3,0.60131858]
[1734969409383,3.03978,3289.8,3288.3,0.60131858]
[1734969409610,3.55,3289.7,3288.3,0.60131858]
[1734969409971,3.0,3289.5,3288.3,0.60131858]
[1734969410173,6.215,3289.5,3288.3,0.60131858]
[1734969410374,3.04006,3289.5,3288.3,0.60131858]
[1734969410615,3.04011,3289.4,3288.3,0.60131858]
[1734969411022,0.55,3289.3,3288.3,0.60131858]
[1734969411372,3.0,3289.5,3288.3,0.60131858]
[1734969411718,3.0,3289.7,3288.4,1.6662]
[1734969412818,6.03985,3289.7,3288.4,1.6662]
[1734969413252,3.0,3289.3,3288.4,1.6662]
[1734969413577,3.0,3289.5,3288.4,1.6662]
[1734969413774,1.5249,3289.1,3286.6,1.6662]
[1734969414002,3.04118,3288.2,3286.7,1.83282]
[1734969414221,3.0,3287.8,3286.7,1.6662]
[1734969414403,0.55,3288.0,3286.7,1.6662]
[1734969414570,3.0,3287.9,3286.7,1.6662]
[1734969414923,0.55,3289.0,3287.0,1.5645]
[1734969415086,3.7659111,3289.8,3287.0,1.59491455]
[1734969415087,3.0,3289.4,3287.0,1.59491455]
[1734969415287,3.0,3289.4,3287.9,1.5645]
[1734969415288,6.15222955,3288.0,3287.9,1.5645]
[1734969416209,3.0,3289.2,3287.9,1.5645]
[1734969416527,3.0,3289.2,3288.2,1.5615]
[1734969417230,6.15222955,3289.2,3288.2,1.5615]
[1734969417393,3.15222955,3289.2,3288.2,1.5615]
[1734969418122,0.55,3289.1,3288.2,1.5615]
[1734969418677,3.15222955,3289.2,3288.2,1.5615]
[1734969418895,6.19248955,3289.2,3288.2,1.5615]
[1734969419196,3.0,3289.1,3288.2,1.5615]
[1734969419727,3.15222955,3289.0,3288.2,1.5615]
[1734969419922,3.0,3288.9,3288.2,1.5615]
[1734969420281,3.0,3288.7,3288.2,1.5615]
[1734969420486,3.0,3288.9,3288.2,1.5615]
[1734969420724,6.864645,3288.8,3288.2,1.5615]
[1734969420898,0.55,3288.8,3288.2,1.5615]
[1734969421098,3.0,3288.6,3288.2,1.5615]
[1734969421302,3.15222955,3288.7,3288.3,1.6065]
[1734969421632,3.15222955,3288.7,3288.4,3.04099]
[1734969421828,3.15222955,3288.7,3288.5,1.5179]
[1734969422130,3.15222955,3288.9,3288.6,3.0408]
[1734969422427,3.15222955,3288.9,3288.8,4.65602]
[1734969422585,3.15222955,3288.9,3288.8,5.121622]
[1734969422982,3.7659111,3289.3,3288.9,1.6154]
[1734969423222,3.7659111,3289.3,3288.2,0.15615]
[1734969423223,3.7659111,3289.3,3289.1,3.04033]
[1734969423443,3.7659111,3289.3,3288.2,0.15615]
[1734969423444,3.7659111,3290.2,3289.2,1.6154]
[1734969423725,4.08956969,3290.2,3289.2,1.6154]
[1734969424229,3.0,3290.1,3289.2,1.6154]
[1734969424544,3.0,3290.3,3289.2,1.6154]
[1734969425285,6.03924,3290.3,3289.2,2.22424117]
[1734969425481,3.04008,3289.4,3288.8,1.5662]
[1734969425734,4.5585,3290.1,3288.8,1.5662]
[1734969425931,0.55,3290.0,3288.8,1.5662]
[1734969426134,3.55,3289.8,3288.8,1.5662]
[1734969426437,3.0,3289.4,3288.8,1.5662]
[1734969426790,3.0,3289.2,3288.8,1.5662]
[1734969427139,3.0396,3289.9,3288.8,1.5662]
[1734969427140,0.55,3289.6,3288.8,1.5662]
[1734969427632,3.0,3289.5,3288.8,1.5662]
[1734969427831,3.55,3289.6,3288.8,1.5662]
[1734969428039,3.0,3289.4,3288.8,1.5662]
[1734969428186,3.0,3289.4,3288.2,1.5662]
[1734969428441,3.7659111,3289.5,3288.2,1.5662]
[1734969428442,3.0,3288.8,3288.2,1.5662]
[1734969428638,0.55,3289.1,3288.2,1.5662]
[1734969429148,3.59043,3289.1,3288.2,1.5662]
[1734969429479,3.0,3289.0,3288.2,1.5662]
[1734969429681,3.0,3288.9,3288.2,1.5662]
[1734969430175,3.04067,3288.8,3288.2,1.5662]
[1734969430361,3.55,3288.6,3287.8,1.6131]
[1734969430534,3.0,3287.9,3287.3,1.6131]
[1734969430735,3.04158,3287.8,3287.3,1.6131]
[1734969430938,3.04138,3288.0,3287.3,1.6131]
[1734969431155,3.0,3287.9,3287.3,1.6131]
[1734969431552,3.0,3287.8,3287.3,1.6131]
[1734969431754,3.0,3288.2,3287.3,1.6131]
[1734969431949,3.0,3287.8,3287.3,1.6131]
[1734969432170,3.0,3287.5,3286.7,1.552]
[1734969432370,3.04249,3286.8,3286.5,0.61289761]
[1734969432571,3.0,3286.7,3286.3,1.552]
[1734969432896,3.04238,3286.9,3286.3,1.552]
[1734969433124,3.0,3287.1,3286.3,1.552]
[1734969433260,3.59157,3287.8,3286.4,0.1552]
[1734969433463,3.0,3287.5,3286.4,0.1552]
[1734969433689,0.55,3287.6,3286.4,0.1552]
[1734969434002,0.55,3287.6,3286.3,1.552]
[1734969434003,3.0,3287.5,3286.3,1.552]
[1734969434772,3.0,3287.1,3286.3,1.552]
[1734969435177,3.0,3287.2,3286.3,1.552]
[1734969435581,3.0,3287.0,3286.3,1.552]
[1734969435771,3.55,3287.0,3286.3,1.552]
[1734969435974,0.55,3287.0,3286.3,1.552]
[1734969436202,3.0,3286.7,3286.3,1.552]
[1734969436368,3.0,3287.3,3286.3,1.552]
[1734969436768,3.04175,3287.6,3286.3,1.552]
[1734969437169,3.7659111,3287.4,3286.3,1.552]
[1734969437695,3.04219,3287.2,3286.3,1.552]
[1734969437896,3.0,3287.3,3286.3,1.552]
[1734969438213,6.04206,3287.3,3286.3,1.552]
[1734969438418,3.04212,3287.2,3286.3,1.552]
[1734969438624,3.0,3287.3,3286.3,1.552]
[1734969438625,3.55,3287.3,3286.3,1.552]
[1734969438928,3.0,3287.0,3286.3,1.552]
[1734969439293,0.55,3287.3,3286.3,1.552]
[1734969439608,3.0,3287.4,3286.3,1.552]
[1734969439609,0.55,3287.6,3286.3,1.552]
[1734969439813,3.55,3287.2,3286.3,1.552]
[1734969440718,3.0,3286.8,3286.3,1.552]
[1734969440918,3.04334,3285.9,3285.4,1.6192]
[1734969441123,1.96565859,3286.2,3285.4,1.6192]
[1734969441288,3.0,3285.8,3285.4,1.6192]
[1734969441489,0.32365859,3286.7,3285.4,1.6192]
[1734969441826,0.55,3286.7,3285.4,1.78112]
[1734969441971,3.0,3286.6,3285.4,1.78112]
[1734969442177,0.55,3286.7,3285.4,1.78112]
[1734969442408,3.55,3286.7,3285.4,1.78112]
[1734969442716,0.55,3286.9,3285.6,1.5807]
[1734969442921,3.04263,3286.7,3285.6,1.5807]
[1734969443070,3.0,3286.6,3285.6,1.5807]
[1734969443704,0.55,3286.9,3285.6,1.5807]
[1734969443886,0.55,3286.9,3285.6,2.043132]
[1734969444104,3.0,3287.2,3285.8,3.04336]
[1734969444301,0.32365859,3287.5,3286.1,1.631]